[Event "Israel Open Championship 2023"]
[Site "Acre"]
[Date "2024.01.28"]
[Round "8.23"]
[White "Bodenshtein, Yair"]
[Black "Gov, Guy"]
[Result "0-1"]
[ECO "C68"]
[WhiteElo "1843"]
[BlackElo "2127"]
[Annotator "RC"]
[PlyCount "82"]
[EventDate "2024.01.18"]
[EventType "swiss"]
[EventCountry "ISR"]
[SourceTitle "playchess.com"]
[Source "ChessBase"]
[SourceQuality "1"]
[TimeControl "5400+30"]

1. e4 {[%emt 1:31:00]} e5 {[%emt 1:31:00]} 2. Nf3 {[%emt 0:00:30]} Nc6 {[%emt 0:00:30]} 3. Bb5 {[%emt 0:00:30]} a6 {[%emt 0:00:30]} 4. Bxc6 {[%emt 0:00:30]} dxc6 {[%emt 0:00:30]} 5. O-O {[%emt 0:00:30]} Bg4 {[%emt 0:00:30]} 6. h3 {[%emt 0:00:30]} Bh5 {[%emt 0:00:30]} 7. g4 {[%emt 0:00:30]} Bg6 {[%emt 0:00:30]} 8. Nxe5 {[%emt 0:00:30]} Qh4 {[%emt 0:00:30]} 9. Qf3 {[%emt 0:00:30]} f6 {[%emt 0:00:30]} 10. Nxg6 {[%emt 0:00:30]} hxg6 {[%emt 0:00:30]} 11. Kg2 {[%emt 0:00:30]} g5 {[%emt 0:00:30]} 12. d3 {[%emt 0:00:30]} Ne7 {[%emt 0:00:30]} 13. Rh1 {[%emt 0:00:30]} Qh7 {[%emt 0:00:30]} 14. Kf1 {[%emt 0:00:30]} Qg8 {[%emt 0:00:30]} 15. Be3 {[%emt 0:00:30]} Ng6 {[%emt 0:00:30]} 16. Nd2 {[%emt 0:00:30]} Bd6 {[%emt 0:00:30]} 17. Nc4 {[%emt 0:00:30]} Bf4 {[%emt 0:00:30]} 18. Bxf4 {[%emt 0:00:30]} Nxf4 {[%emt 0:00:30]} 19. Ne3 {[%emt 0:00:30]} O-O-O {[%emt 0:00:30]} 20. b4 {[%emt 0:00:30]} Rh7 {[%emt 0:00:30]} 21. Ng2 {[%emt 0:00:30]} Ne6 {[%emt 0:00:30]} 22. a4 {[%emt 0:00:30]} Nd4 {[%emt 0:00:30]} 23. Qd1 {[%emt 0:00:30]} Qh8 {[%emt 0:00:30]} 24. h4 {[%emt 0:00:30]} gxh4 {[%emt 0:00:30]} 25. Rh3 {[%emt 0:00:30]} Qe8 {[%emt 0:00:30]} 26. c3 {[%emt 0:00:30]} Ne6 {[%emt 0:00:30]} 27. f4 {[%emt 0:00:30]} c5 {[%emt 0:00:30]} 28. Kg1 {[%emt 0:00:30]} cxb4 {[%emt 0:00:30]} 29. cxb4 {[%emt 0:00:30]} g5 {[%emt 0:00:30]} 30. f5 {[%emt 0:00:30]} Nd4 {[%emt 0:00:30]} 31. Kh1 {[%emt 0:00:30]} Qe5 {[%emt 0:00:30]} 32. Rc1 {[%emt 0:00:30]} Qg3 {[%emt 0:00:30]} 33. Rxg3 {[%emt 0:00:30]} hxg3+ {[%emt 0:00:30]} 34. Kg1 {[%emt 0:00:30]} Rdh8 {[%emt 0:00:30]} 35. Ne3 {[%emt 0:00:30]} Rh1+ {[%emt 0:00:30]} 36. Kg2 {[%emt 0:00:30]} R1h2+ {[%emt 0:00:30]} 37. Kg1 {[%emt 0:00:30]} Ne2+ {[%emt 0:00:30]} 38. Kf1 {[%emt 0:00:30]} Rf2+ {[%emt 0:00:30]} 39. Ke1 {[%emt 0:00:30]} Nc3 {[%emt 0:00:30]} 40. Qf3 {[%emt 0:00:30]} Rxf3 {[%emt 0:00:30]} 41. Rxc3 {[%emt 0:00:30]} Rf2 {[%emt 0:00:30]} 0-1

[Event "Israel Open Championship 2023"]
[Site "Acre"]
[Date "2024.01.28"]
[Round "8.24"]
[White "Uritsky, Yonathan"]
[Black "Cohen, Avi"]
[Result "1-0"]
[ECO "A12"]
[WhiteElo "2097"]
[BlackElo "1817"]
[Annotator "RC"]
[PlyCount "77"]
[EventDate "2024.01.18"]
[EventType "swiss"]
[EventCountry "ISR"]
[SourceTitle "playchess.com"]
[Source "ChessBase"]
[SourceQuality "1"]
[TimeControl "5400+30"]

1. Nf3 {[%emt 0:00:02]} d5 {[%emt 0:00:08]} 2. g3 {[%emt 0:00:34]} Nf6 {[%emt 0:00:15]} 3. Bg2 {[%emt 0:00:08]} Bf5 {[%emt 0:00:10]} 4. O-O {[%emt 0:00:08]} e6 {[%emt 0:00:17]} 5. c4 {[%emt 0:00:16]} c6 {[%emt 0:00:25]} 6. b3 {[%emt 0:00:17]} h6 {[%emt 0:00:24]} 7. Bb2 {[%emt 0:00:29]} Be7 {[%emt 0:00:58]} 8. d3 {[%emt 0:00:31]} O-O {[%emt 0:00:19]} 9. Nbd2 {[%emt 0:02:33]} Nbd7 {[%emt 0:03:09]} 10. a3 {[%emt 0:00:45]} a5 {[%emt 0:00:36]} 11. Ra2 {[%emt 0:01:12]} Qb6 {[%emt 0:04:36]} 12. Qa1 {[%emt 0:03:11]} Rfd8 {[%emt 0:10:52]} 13. Rb1 {[%emt 0:06:17]} Bc5 {[%emt 0:05:55]} 14. Bd4 {[%emt 0:03:09]} e5 {[%emt 0:11:10]} 15. Bxc5 {[%emt 0:00:55]} Qxc5 {[%emt 0:00:13]} 16. cxd5 {[%emt 0:06:08]} cxd5 {[%emt 0:01:47]} 17. Nxe5 {[%emt 0:00:59]} Nxe5 {[%emt 0:00:36]} 18. Qxe5 {[%emt 0:00:02]} Qxf2+ {[%emt 0:00:18]} 19. Kxf2 {[%emt 0:00:01]} Ng4+ {[%emt 0:00:01]} 20. Kf3 {[%emt 0:00:01]} Nxe5+ {[%emt 0:13:37]} 21. Kf4 {[%emt 0:00:05]} Bg6 {[%emt 0:07:15]} 22. Kxe5 {[%emt 0:00:27]} Re8+ {[%emt 0:00:01]} 23. Kd4 {[%emt 0:02:56]} Rxe2 {[%emt 0:00:18]} 24. Bf3 {[%emt 0:00:01]} Rxh2 {[%emt 0:01:26]} 25. Rh1 {[%emt 0:01:18]} Rxh1 {[%emt 0:01:48]} 26. Bxh1 {[%emt 0:00:04]} Re8 {[%emt 0:03:45]} 27. Bxd5 {[%emt 0:00:16]} Re1 {[%emt 0:00:28]} 28. Nf3 {[%emt 0:00:41]} Rf1 {[%emt 0:02:09]} 29. Ne5 {[%emt 0:00:55]} Kh7 {[%emt 0:00:06]} 30. Bxb7 {[%emt 0:00:20]} h5 {[%emt 0:00:29]} 31. Rh2 {[%emt 0:01:36]} f5 {[%emt 0:00:51]} 32. Bf3 {[%emt 0:00:32]} Rg1 {[%emt 0:01:27]} 33. Bxh5 {[%emt 0:00:24]} Bxh5 {[%emt 0:00:19]} 34. Rxh5+ {[%emt 0:00:01]} Kg8 {[%emt 0:00:11]} 35. Rxf5 {[%emt 0:00:35]} Rxg3 {[%emt 0:00:02]} 36. b4 {[%emt 0:00:07]} axb4 {[%emt 0:00:17]} 37. axb4 {[%emt 0:00:02]} Rg1 {[%emt 0:00:31]} 38. b5 {[%emt 0:00:06]} Rb1 {[%emt 0:00:33]} 39. Nc4 {[%emt 0:00:15]} 1-0

[Event "Israel Open Championship 2023"]
[Site "Acre"]
[Date "2024.01.28"]
[Round "8.25"]
[White "Pelech, Roee"]
[Black "Sagalovich, Yakov"]
[Result "1-0"]
[ECO "C02"]
[WhiteElo "2178"]
[BlackElo "1636"]
[Annotator "TA"]
[PlyCount "101"]
[EventDate "2024.01.18"]
[EventType "swiss"]
[EventCountry "ISR"]
[SourceTitle "playchess.com"]
[Source "ChessBase"]
[SourceQuality "1"]
[TimeControl "5400+30"]

{[%evp 16,101,38,-30,-10,-30,-34,-39,-29,-45,0,10,73,42,112,93,70,0,0,-11,162,150,154,158,159,159,142,139,201,174,165,171,181,170,165,165,283,223,243,247,312,137,150,153,147,153,144,149,153,143,141,135,609,609,609,566,650,470,3795,4021,4021,2541,2711,1759,5728,8642,9832,6164,29949,29952,29973,29958,29955,29959,29971,29972,29972,29968,29977,29977,29979,29980,29985,29986,29991,29982,29993,29992]} 1. e4 {[%emt 0:00:02]} c6 {[%emt 0:00:06]} 2. Nf3 {[%emt 0:01:04]} d5 {[%emt 0:00:06]} 3. e5 {[%emt 0:02:34]} Bf5 {[%emt 0:00:09]} 4. Nh4 {[%emt 0:00:03]} Bd7 {[%emt 0:01:42]} 5. d4 {[%emt 0:00:19]} e6 {[%emt 0:00:12]} 6. Nf3 {[%emt 0:00:09]} c5 {[%emt 0:00:33]} 7. c3 {[%emt 0:01:20]} Nc6 {[%emt 0:00:53]} 8. Bd3 {[%emt 0:03:19]} Qb6 {[%emt 0:00:22]} 9. O-O {[%emt 0:00:06]} (9. dxc5 $1 $14 Bxc5 10. O-O) 9... cxd4 $11 {[%emt 0:00:51]} 10. Re1 {[%emt 0:00:31]} Nge7 {[%emt 0:02:47]} 11. Na3 {[%emt 1:26:33]} dxc3 {[%emt 0:02:28] Black is slightly better.} 12. bxc3 {[%emt 0:00:00]} Ng6 {[%emt 0:02:55]} (12... a6 $15) 13. Rb1 {[%emt 0:00:00]} Qc7 {[%emt 0:00:36]} (13... Qa5 $11 {keeps the balance.} 14. Nb5 Be7) 14. Nb5 $16 {[%emt 0:00:00]} Qb8 {[%emt 0:00:11]} (14... Qc8 $14) 15. c4 {[%emt 0:00:00] Threatens to win with cxd5.} a6 {[%emt 0:11:31]} 16. Nc3 {[%emt 0:00:00]} (16. Nd6+ $1 $14 Bxd6 17. exd6 dxc4 18. Bxc4) 16... dxc4 $11 {[%emt 0:02:57]} 17. Bxc4 {[%emt 0:00:00]} Ncxe5 $2 {[%emt 0:00:09]} (17... Bb4 $11 {and Black stays safe.} 18. Rxb4 Nxb4) 18. Nxe5 $18 {[%emt 0:00:00]} Nxe5 {[%emt 0:00:08]} 19. Bf4 {[%emt 0:00:00]} Bd6 {[%emt 0:00:10]} 20. Ne4 {[%emt 0:00:00]} Bc7 {[%emt 0:10:03] [#]} 21. Nc5 $1 {[%emt 0:00:00] White is much more active.} Bc6 {[%emt 0:00:06]} (21... Bc8 $16) 22. Bxe5 {[%emt 0:00:00]} Bxe5 {[%emt 0:00:09]} 23. Qh5 {[%emt 0:00:00][%csl LRe5,LRe6]} Bxh2+ {[%emt 0:07:39]} 24. Qxh2 {[%emt 0:00:00]} Qxh2+ {[%emt 0:01:24]} 25. Kxh2 {[%emt 0:00:00]} O-O-O {[%emt 0:00:06]} (25... Ra7 $142 26. Nxa6 O-O) 26. Rb2 {[%emt 0:00:00]} Kc7 {[%emt 0:06:42]} 27. Rc1 {[%emt 0:00:00]} Rd6 {[%emt 0:00:16] [#]} 28. Nxb7 {[%emt 0:00:00]} Bxb7 $16 {[%emt 0:00:08]} 29. Bxa6+ {[%emt 0:00:00]} Bc6 {[%emt 0:00:21]} 30. Rb7+ {[%emt 0:00:00]} Kc8 {[%emt 0:00:15]} 31. Rxf7+ {[%emt 0:00:00]} Kb8 {[%emt 0:00:06][%cal Oc6g2]} 32. Rb1+ {[%emt 0:00:00]} (32. Rxg7 $6 Bxg2 33. Rb1+ Ka8 $14) 32... Ka8 {[%emt 0:00:06][%cal Oc6g2]} 33. Rb6 {[%emt 0:00:32]} (33. Rxg7 $6 Bxg2 34. Be2 Bd5 $11) 33... Rb8 $2 {[%emt 0:04:44][%mdl 8192] [#] This costs Black the game.} (33... Rd7 $16) 34. Bb7+ $1 $18 {[%emt 0:00:50][%mdl 512]} Rxb7 {[%emt 0:01:32]} 35. Rfxb7 {[%emt 0:00:02][%mdl 4096] Endgame. KRR-KRB} Rd2 {[%emt 0:01:10]} 36. Rb2 {[%emt 0:00:29]} (36. Rxc6 Kxb7 37. Rxe6 Rxa2 $11) 36... Rxf2 {[%emt 0:01:37]} (36... g6 $142 37. Rb8+ (37. Rxh7 $2 {perishes.} Rxb2 38. Rf7 Be4 $19) 37... Ka7 38. Rxd2 Kxb8 39. Rd8+ Kc7) 37. Rb8+ {[%emt 0:00:15]} (37. Rxg7 $2 {too greedy.} Rxb2 38. Rxh7 Rxg2+ (38... Bxg2 $2 39. Kg3 $19) (38... Rxa2 $2 39. Rg7 $19) 39. Kh3 Rxa2 $19) 37... Ka7 {[%emt 0:00:08]} 38. Rxf2 {[%emt 0:00:03] Rfb2 would kill now.} Kxb8 {[%emt 0:00:08] KR-KB} 39. Rf7 {[%emt 0:00:02]} Bd5 {[%emt 0:01:08]} 40. a4 {[%emt 0:00:30][%cal Ba2a4,Ba4a5][%mdl 32]} Bc6 {[%emt 0:01:15]} 41. a5 {[%emt 0:00:27]} Be4 {[%emt 0:00:10]} 42. Rxg7 {[%emt 0:00:09] White mates.} Bg6 {[%emt 0:00:16]} 43. Re7 {[%emt 0:00:11]} Bf5 {[%emt 0:00:10]} 44. Kg3 {[%emt 0:00:04]} h5 {[%emt 0:00:26]} 45. Kh4 {[%emt 0:00:13]} Bg4 {[%emt 0:00:10]} 46. g3 {[%emt 0:00:01]} Ka8 {[%emt 0:00:10]} 47. Kg5 {[%emt 0:00:08]} Kb8 {[%emt 0:00:33]} 48. Kf4 {[%emt 0:00:15]} Ka8 {[%emt 0:00:09]} 49. Ke5 {[%emt 0:00:04]} Kb8 {[%emt 0:00:14]} 50. Kd6 {[%emt 0:00:06]} Ka8 {[%emt 0:00:16]} 51. Kc5 {[%emt 0:00:09] Weighted Error Value: White=0.26 (precise) /Black=0.57.  Loses game:     	---       	Black=2      Missed win:     	White=1     	---        Mistake:       	White=1     	Black=6      OK:         	White=7     	Black=8      Best:        	White=4     	Black=3      Strong:       	White=1     	---        Brilliant:      	White=1     	---} 1-0

[Event "Israel Open Championship 2023"]
[Site "Acre"]
[Date "2024.01.28"]
[Round "8.26"]
[White "Kochavi, Dana"]
[Black "Moshenberg, David"]
[Result "1-0"]
[ECO "B31"]
[WhiteElo "2121"]
[BlackElo "1847"]
[Annotator "RC"]
[PlyCount "49"]
[EventDate "2024.01.18"]
[EventType "swiss"]
[EventCountry "ISR"]
[SourceTitle "playchess.com"]
[Source "ChessBase"]
[SourceQuality "1"]
[TimeControl "5400+30"]

1. e4 {[%emt 0:00:01]} c5 {[%emt 0:00:00]} 2. Nf3 {[%emt 0:00:07]} Nc6 {[%emt 0:00:01]} 3. Bb5 {[%emt 0:00:07]} g6 {[%emt 0:00:16]} 4. O-O {[%emt 0:00:04]} Bg7 {[%emt 0:00:04]} 5. c3 {[%emt 0:00:26]} Qb6 {[%emt 0:01:06]} 6. Ba4 {[%emt 0:01:41]} Nf6 {[%emt 0:00:54]} 7. Re1 {[%emt 0:03:03]} O-O {[%emt 0:00:33]} 8. h3 {[%emt 0:03:05]} d6 {[%emt 0:04:22]} 9. d4 {[%emt 0:04:47]} cxd4 {[%emt 0:05:54]} 10. cxd4 {[%emt 0:00:04]} Nd7 {[%emt 0:01:47]} 11. Nc3 {[%emt 0:26:48]} e6 {[%emt 0:07:47]} 12. Nb5 {[%emt 0:06:57]} Ne7 {[%emt 0:07:54]} 13. Bg5 {[%emt 0:04:19]} f6 {[%emt 0:10:17]} 14. Bf4 {[%emt 0:02:01]} e5 {[%emt 0:00:29]} 15. dxe5 {[%emt 0:00:18]} dxe5 {[%emt 0:00:49]} 16. Be3 {[%emt 0:00:23]} Nc5 {[%emt 0:01:34]} 17. Qc2 {[%emt 0:00:22]} Nxa4 {[%emt 0:00:14]} 18. Bxb6 {[%emt 0:00:07]} Nxb6 {[%emt 0:00:03]} 19. Qb3+ {[%emt 0:00:55]} Kh8 {[%emt 0:00:13]} 20. Nd6 {[%emt 0:00:11]} h6 {[%emt 0:00:18]} 21. a4 {[%emt 0:00:40]} Rb8 {[%emt 0:00:30]} 22. a5 {[%emt 0:01:11]} Nd7 {[%emt 0:00:02]} 23. Rac1 {[%emt 0:00:14]} Nc6 {[%emt 0:01:04]} 24. a6 {[%emt 0:01:38]} bxa6 {[%emt 0:56:19]} 25. Qa4 {[%emt 0:43:31]} 1-0

[Event "Israel Open Championship 2023"]
[Site "Acre"]
[Date "2024.01.28"]
[Round "8.27"]
[White "Pashanov, Stanislav"]
[Black "Katz, Kiril"]
[Result "0-1"]
[ECO "D24"]
[WhiteElo "1993"]
[BlackElo "2031"]
[Annotator "RC"]
[PlyCount "90"]
[EventDate "2024.01.18"]
[EventType "swiss"]
[EventCountry "ISR"]
[SourceTitle "playchess.com"]
[Source "ChessBase"]
[SourceQuality "1"]
[TimeControl "5400+30"]

1. d4 {[%emt 0:14:13]} Nf6 {[%emt 0:00:06]} 2. c4 {[%emt 0:00:41]} e6 {[%emt 0:00:03]} 3. Nf3 {[%emt 0:00:09]} d5 {[%emt 0:00:06]} 4. Nc3 {[%emt 0:00:15]} dxc4 {[%emt 0:00:04]} 5. a4 {[%emt 0:02:42]} a6 {[%emt 0:03:26]} 6. Bg5 {[%emt 0:00:53]} Nc6 {[%emt 0:06:06]} 7. e3 {[%emt 0:04:03]} Na5 {[%emt 0:14:22]} 8. Nd2 {[%emt 0:01:05]} Bb4 {[%emt 0:02:23]} 9. Nxc4 {[%emt 0:00:19]} Qd5 {[%emt 0:01:28]} 10. Bxf6 {[%emt 0:03:09]} Nxc4 {[%emt 0:01:47]} 11. Bxg7 {[%emt 0:07:52]} Rg8 {[%emt 0:14:49]} 12. Bf6 {[%emt 0:23:44]} Rg6 {[%emt 0:01:35]} 13. Bh4 {[%emt 0:00:17]} Nxb2 {[%emt 0:01:17]} 14. Qd2 {[%emt 0:00:06]} Qa5 {[%emt 0:01:15]} 15. Rc1 {[%emt 0:01:17]} Nxa4 {[%emt 0:00:04]} 16. Bd3 {[%emt 0:00:40]} Bxc3 {[%emt 0:01:20]} 17. Rxc3 {[%emt 0:00:05]} Qxc3 {[%emt 0:00:03]} 18. Bxg6 {[%emt 0:03:38]} fxg6 {[%emt 0:01:57]} 19. Qxc3 {[%emt 0:00:47]} Nxc3 {[%emt 0:00:01]} 20. Kd2 {[%emt 0:00:20]} Ne4+ {[%emt 0:00:25]} 21. Kd3 {[%emt 0:00:10]} Nd6 {[%emt 0:00:23]} 22. e4 {[%emt 0:00:32]} b5 {[%emt 0:00:03]} 23. f4 {[%emt 0:00:46]} Bb7 {[%emt 0:00:28]} 24. d5 {[%emt 0:01:29]} exd5 {[%emt 0:00:11]} 25. e5 {[%emt 0:00:03]} Nf5 {[%emt 0:00:17]} 26. Bf2 {[%emt 0:00:09]} h5 {[%emt 0:00:47]} 27. Rc1 {[%emt 0:00:10]} c6 {[%emt 0:00:52]} 28. g3 {[%emt 0:00:17]} a5 {[%emt 0:00:07]} 29. h3 {[%emt 0:00:07]} b4 {[%emt 0:00:45]} 30. g4 {[%emt 0:01:43]} Ba6+ {[%emt 0:03:42]} 31. Kd2 {[%emt 0:00:06]} Ne7 {[%emt 0:00:15]} 32. Bc5 {[%emt 0:00:41]} Bc4 {[%emt 0:01:19]} 33. Ra1 {[%emt 0:00:10]} Rb8 {[%emt 0:02:15]} 34. Kc2 {[%emt 0:06:10]} Rb5 {[%emt 0:01:23]} 35. Bd6 {[%emt 0:00:03]} c5 {[%emt 0:01:01]} 36. gxh5 {[%emt 0:01:51]} gxh5 {[%emt 0:00:18]} 37. Rg1 {[%emt 0:02:01]} d4 {[%emt 0:01:47]} 38. Bxe7 {[%emt 0:00:48]} Kxe7 {[%emt 0:00:07]} 39. f5 {[%emt 0:00:07]} b3+ {[%emt 0:01:45]} 40. Kb2 {[%emt 0:00:12]} a4 {[%emt 0:00:03]} 41. Rg7+ {[%emt 0:00:25]} Bf7 {[%emt 0:02:49]} 42. e6 {[%emt 0:00:03]} a3+ {[%emt 0:00:02]} 43. Kb1 {[%emt 0:00:14]} a2+ {[%emt 0:00:05]} 44. Kb2 {[%emt 0:00:19]} c4 {[%emt 0:00:01]} 45. Rxf7+ {[%emt 0:00:48]} Ke8 {[%emt 0:00:04]} 0-1

[Event "Israel Open Championship 2023"]
[Site "Acre"]
[Date "2024.01.28"]
[Round "8.28"]
[White "Rinberg, David"]
[Black "Levitan, Ronit"]
[Result "1/2-1/2"]
[ECO "C95"]
[WhiteElo "1790"]
[BlackElo "2101"]
[Annotator "RC"]
[PlyCount "85"]
[EventDate "2024.01.18"]
[EventType "swiss"]
[EventCountry "ISR"]
[SourceTitle "playchess.com"]
[Source "ChessBase"]
[SourceQuality "1"]
[TimeControl "5400+30"]

1. e4 {[%emt 0:00:08]} e5 {[%emt 0:00:38]} 2. Nf3 {[%emt 0:00:17]} Nc6 {[%emt 0:00:19]} 3. Bb5 {[%emt 0:00:22]} a6 {[%emt 0:00:40]} 4. Ba4 {[%emt 0:00:16]} Nf6 {[%emt 0:01:06]} 5. O-O {[%emt 0:00:46]} Be7 {[%emt 0:01:28]} 6. Re1 {[%emt 0:01:02]} b5 {[%emt 0:00:41]} 7. Bb3 {[%emt 0:00:06]} d6 {[%emt 0:00:04]} 8. c3 {[%emt 0:00:45]} O-O {[%emt 0:00:14]} 9. h3 {[%emt 0:00:37]} Nb8 {[%emt 0:00:15]} 10. d4 {[%emt 0:00:35]} Nbd7 {[%emt 0:00:08]} 11. Nbd2 {[%emt 0:00:41]} c5 {[%emt 0:00:12]} 12. Nf1 {[%emt 0:01:27]} Re8 {[%emt 0:00:09]} 13. Ng3 {[%emt 0:01:07]} Bf8 {[%emt 0:01:28]} 14. a4 {[%emt 0:12:56]} Rb8 {[%emt 0:01:35]} 15. axb5 {[%emt 0:01:51]} axb5 {[%emt 0:00:07]} 16. Bc2 {[%emt 0:09:18]} Bb7 {[%emt 0:03:24]} 17. d5 {[%emt 0:08:42]} g6 {[%emt 0:04:13]} 18. Bg5 {[%emt 0:00:32]} Qc7 {[%emt 0:05:21]} 19. b3 {[%emt 0:03:18]} Ra8 {[%emt 0:02:34]} 20. Qd2 {[%emt 0:01:19]} Bg7 {[%emt 0:02:31]} 21. Nh4 {[%emt 0:07:06]} Ra5 {[%emt 0:04:25]} 22. c4 {[%emt 0:06:56]} Rea8 {[%emt 0:06:53]} 23. Rxa5 {[%emt 0:08:07]} Rxa5 {[%emt 0:02:51]} 24. Nhf5 {[%emt 0:08:27]} gxf5 {[%emt 0:21:16]} 25. Nxf5 {[%emt 0:00:11]} Kf8 {[%emt 0:11:29]} 26. Nxd6 {[%emt 0:04:47]} Ra2 {[%emt 0:02:04]} 27. Nxb5 {[%emt 0:02:41]} Qa5 {[%emt 0:00:11]} 28. Nc3 {[%emt 0:02:56]} Ra1 {[%emt 0:01:30]} 29. Bb1 {[%emt 0:00:42]} Ne8 {[%emt 0:01:47]} 30. Na2 {[%emt 0:02:05]} Qxd2 {[%emt 0:09:51]} 31. Bxd2 {[%emt 0:00:08]} Nd6 {[%emt 0:00:06]} 32. Bc3 {[%emt 0:04:18]} Rxb1 {[%emt 0:00:27]} 33. Rxb1 {[%emt 0:00:07]} Nxe4 {[%emt 0:00:04]} 34. Be1 {[%emt 0:00:58]} Nd6 {[%emt 0:00:30]} 35. Nc3 {[%emt 0:02:35]} Ke7 {[%emt 0:03:14]} 36. f3 {[%emt 0:01:15]} Nf5 {[%emt 0:01:42]} 37. Na4 {[%emt 0:03:08]} Ba6 {[%emt 0:03:00]} 38. Bf2 {[%emt 0:03:25]} Nd4 {[%emt 0:00:13]} 39. Nc3 {[%emt 0:00:06]} f5 {[%emt 0:01:18]} 40. Ra1 {[%emt 0:00:31]} Nb8 {[%emt 0:00:20]} 41. Rb1 {[%emt 0:00:00]} Nd7 {[%emt 0:00:00]} 42. Ra1 {[%emt 0:00:00]} Nb8 {[%emt 0:00:00]} 43. Rb1 {[%emt 0:00:00]} 1/2-1/2

[Event "Israel Open Championship 2023"]
[Site "Acre"]
[Date "2024.01.28"]
[Round "8.29"]
[White "Sason, Noam"]
[Black "Streltsov, Alexey"]
[Result "0-1"]
[ECO "B47"]
[WhiteElo "1643"]
[BlackElo "2341"]
[Annotator "TA"]
[PlyCount "78"]
[EventDate "2024.01.18"]
[EventType "swiss"]
[EventCountry "ISR"]
[SourceTitle "playchess.com"]
[Source "ChessBase"]
[SourceQuality "1"]
[TimeControl "5400+30"]

{[%evp 20,78,0,-5,11,0,32,27,30,-134,0,5,0,0,0,0,18,0,39,-50,-39,-32,-46,-96,-89,-157,-122,-131,-127,-169,-183,-356,-331,-358,-169,-206,-183,-240,-218,-169,0,-73,-71,-78,-78,-29958,-29953,-29963,-29966,-29961,-12840,-29972,-29973,-29973,-29975,-29974,-29975,-29975,-29976,-29972,-29973]} 1. e4 {[%emt 0:00:24]} c5 {[%emt 0:00:05]} 2. Nf3 {[%emt 0:00:27]} e6 {[%emt 0:00:06]} 3. d4 {[%emt 0:00:34]} cxd4 {[%emt 0:00:05]} 4. Nxd4 {[%emt 0:00:19]} Nc6 {[%emt 0:00:04]} 5. Nc3 {[%emt 0:00:36]} Qc7 {[%emt 0:00:06]} 6. Be2 {[%emt 0:00:46]} Nf6 {[%emt 0:00:11]} 7. O-O {[%emt 0:00:46]} a6 {[%emt 0:00:26]} 8. Kh1 {[%emt 0:01:37]} Nxd4 {[%emt 0:02:56]} 9. Qxd4 {[%emt 0:00:33]} Bc5 {[%emt 0:00:19]} 10. Qd3 {[%emt 0:01:14]} b5 {[%emt 0:03:02]} 11. Bg5 {[%emt 0:02:04]} Bb7 {[%emt 0:01:56]} 12. Rad1 {[%emt 0:07:44]} Bc6 {[%emt 0:23:19]} 13. a3 {[%emt 0:09:04]} (13. f4 {feels hotter.} h5 14. e5 Ng4 15. Ne4) 13... h5 {[%emt 0:11:51][%cal Bh7h5,Bh5h4,Bh4h3][%mdl 32] White has an edge.} 14. b4 $2 {[%emt 0:02:12]} (14. Bh4 $11) 14... Be7 {[%emt 0:00:33]} (14... Ng4 $1 $17 15. Bxg4 hxg4) 15. f4 $11 {[%emt 0:02:23]} h4 {[%emt 0:06:23][%cal Oh4h3]} 16. Bf3 {[%emt 0:05:29]} h3 {[%emt 0:08:58]} 17. g3 {[%emt 0:02:23]} d6 {[%emt 0:00:53]} 18. Rfe1 {[%emt 0:23:23]} O-O {[%emt 0:05:11]} 19. Ne2 {[%emt 0:03:07]} (19. Qf1 $1 $14) 19... d5 $1 $15 {[%emt 0:04:20]} 20. exd5 {[%emt 0:14:04]} Bxd5 {[%emt 0:00:30]} 21. Nd4 {[%emt 0:02:07]} (21. Ng1 $15) 21... Rfd8 $17 {[%emt 0:01:49]} 22. Qf1 {[%emt 0:03:44]} (22. Bxd5 $142 Nxd5 (22... Rxd5 23. Qf3 $17) 23. Qf3) 22... Qc3 {[%emt 0:08:43]} 23. Bxd5 {[%emt 0:02:04]} Rxd5 {[%emt 0:01:15]} (23... Nxd5 $6 24. Rd3 Qc4 25. Qxh3 $15) 24. Rd3 {[%emt 0:00:58]} Qc4 {[%emt 0:00:03]} 25. c3 {[%emt 0:01:35] [#]} (25. Red1) 25... Ng4 $1 $19 {[%emt 0:01:58]} 26. Kg1 {[%emt 0:03:17]} (26. Rf3 Qxf1+) 26... Bxg5 {[%emt 0:00:11]} (26... e5 $142 27. Bxe7 exd4) 27. fxg5 {[%emt 0:00:09]} e5 $40 {[%emt 0:02:31][%mdl 128] Black wants a kill.} (27... Rxg5 $2 28. Red1 $19) 28. Re4 {[%emt 0:07:38]} exd4 {[%emt 0:14:37]} 29. Rxg4 {[%emt 0:00:28]} Rad8 $2 {[%emt 0:00:00]} (29... Re8 $19 30. Rf4 Rde5 (30... Rxg5 31. cxd4 Qa2 32. Rd1 $17) 31. Rdxd4 Qxc3) 30. Rh4 {[%emt 0:00:33] [#] Dodges Rf5} (30. cxd4 $1 $11 {remains equal.} g6 31. Rd2) 30... dxc3 $1 $17 {[%emt 0:01:17]} 31. Rxc4 {[%emt 0:03:35] White threatens Rxd5 and mate.} ({Don't go for} 31. Qxh3 $2 Qxh4 (31... Qxd3 32. Rh8#) 32. Qxh4 Rxd3 $19) 31... Rxd3 {[%emt 0:00:03]} 32. Qxh3 $2 {[%emt 0:00:35][%mdl 8192] White does not recover from this.} bxc4 {[%emt 0:00:25] KQ-KRR} 33. g6 {[%emt 0:00:19]} fxg6 {[%emt 0:01:08]} 34. Qe6+ {[%emt 0:00:10]} Kf8 {[%emt 0:00:08] ( -> ...c2)} 35. Qxc4 {[%emt 0:00:46] [#]} c2 $1 {[%emt 0:00:22][%mdl 512] Black mates.} 36. Kg2 {[%emt 0:00:32]} (36. Kf2 Rd2+) 36... Rd1 {[%emt 0:00:26]} ({Weaker is} 36... Rxa3 37. Qc5+ Ke8 38. Qxc2 $11) 37. Qf4+ {[%emt 0:00:42]} Kg8 {[%emt 0:00:02]} 38. Qc4+ {[%emt 0:00:07]} R8d5 {[%emt 0:00:04]} 39. Qc8+ {[%emt 0:00:16]} Kh7 {[%emt 0:00:03] Weighted Error Value: White=0.62/Black=0.23 (precise) .  Loses game:     	White=1     	---        Missed win:     	---       	Black=1      Mistake:       	White=6     	Black=2      Inaccurate:     	White=1     	Black=2      OK:         	White=6     	Black=6      Best:        	White=1     	Black=4      Strong:       	---       	Black=2} 0-1